Cogmind - Beta 13 @@@ ROGUE MODE // 2024.07.10 @ 19:59:31 Player: ThatBishHoly Result: Destroyed by S-10 Pest with Light Assault Rifle Performance ------------- Evolutions (1) 500 Regions Visited (2) 400 Robots Destroyed (18) 90 Value Destroyed (553) 553 Prototype IDs (0) 0 Alien Tech Used (0) 0 Bonus (0) 0 TOTAL SCORE: 1543 Bonus ------- None Cogmind --------- Core Integrity 0/400 Matter 300/300 Energy 240/250 System Corruption 0% Temperature Warm (130) Movement Walking (120) Location -9/Materials Parts ------- > --- POWER (1) -------- Ion Engine > --- PROPULSION (4) --- Aluminum Leg Aluminum Leg Aluminum Leg > --- UTILITY (2) ------ Medium Storage Unit Hardened Light Armor Plating > --- WEAPON (2) ------- Particle Gun > --- INVENTORY (10) --- Signal Interpreter Datajack Peak State ------------ > --- POWER ------------ Ion Engine > --- PROPULSION ------- Aluminum Leg Aluminum Leg Aluminum Leg > --- UTILITY ---------- Medium Storage Unit Hardened Light Armor Plating > --- WEAPON ----------- Particle Gun > --- INVENTORY -------- Signal Interpreter Datajack [Rating: 9] Favorites ----------- Power Ion Engine Engine Ion Engine Propulsion Aluminum Leg Leg Aluminum Leg Utility Targeting Computer Storage Medium Storage Unit Processor Targeting Computer Protection Hardened Light Armor Plating Weapon Light Assault Rifle Energy Gun Particle Gun Ballistic Gun Light Assault Rifle Build | -11 -10 -9 ------- Run | Yrd Mat Mat Slots Evolved 2 | . . 2 Power . | . . . Propulsion 2 | . . 2 Utility . | . . . Weapon . | . . . Parts Attached 21 | 6 8 7 Power 5 | 1 2 2 Engine 5 | 1 2 2 Core . | . . . Reactor . | . . . Propulsion 8 | 2 3 3 Treads . | . . . Leg 8 | 2 3 3 Wheel . | . . . Hover . | . . . Flight . | . . . Utility 4 | 1 2 1 Device . | . . . Storage 2 | 1 1 . Processor 1 | . 1 . Hackware . | . . . Protection 1 | . . 1 Artifact . | . . . Weapon 4 | 2 1 1 Energy Gun 1 | . . 1 Energy Cannon . | . . . Ballistic Gun 3 | 2 1 . Ballistic Cannon . | . . . Launcher . | . . . Special Weapon . | . . . Impact Weapon . | . . . Slashing Weapon . | . . . Piercing Weapon . | . . . Special Melee Weapon . | . . . Unidentified Prototypes . | . . . Parts Lost 9 | . 3 6 Power 2 | . 1 1 Propulsion 3 | . 1 2 Utility 1 | . . 1 Weapon 3 | . 1 2 Highest Loss Streak 4 | . 3 4 To Critical Strikes . | . . . Average Slot Usage (%) 81 | . 92 69 Engine 11 | . 12 10 Leg 25 | . 28 22 Storage 12 | . 14 11 Processor 9 | . 12 5 Protection 2 | . . 4 Energy Gun 2 | . . 4 Ballistic Gun 17 | . 23 10 Naked Turns . | . . . Heaviest Build 23 | 10 18 23 Greatest Support 30 | 20 20 30 Greatest Overweight (x) 2 | . . 2 Average Overweight (x) . | . . . Largest Inventory Capacity 10 | 8 10 10 Average Capacity 9 | 6 8 10 Most Carried 6 | 5 5 6 Average Carried 3 | 1 3 3 Final Capacity 10 | 8 10 10 Final Carried 3 | . 3 2 Class Distribution -------------------- 95% | Mutant 4% | Scavenger-Mutant Dominant Class ---------------- Mutant | -10/Materials Mutant | -9/Materials Resources | -11 -10 -9 ----------- Run | Yrd Mat Mat Matter Collected 535 | 133 269 133 Remotely . | . . . Salvage Created 711 | . 269 442 Parts 40 | . 17 23 Haulers Intercepted 2 | . 2 . Recyclers Shooed 5 | . 3 2 Parts Field Recycled . | . . . Retrieved Matter . | . . . Parts Self-Destructed . | . . . Prevented . | . . . Kills | -11 -10 -9 ------- Run | Yrd Mat Mat Combat Hostiles Destroyed 15 | . 4 11 Guns 15 | . 4 11 Classes Destroyed 6 | . 3 3 Worker 1 | . 1 . Hauler 2 | . 2 . Swarmer 1 | . . 1 Grunt 12 | . 4 8 Brawler 1 | . . 1 Sentry 1 | . . 1 Best Kill Streak 4 | . 3 4 Combat Bots Only 4 | . 2 4 Max Kills in Single Turn 1 | . 1 1 Gunslinging . | . . . Exploded . | . . . Melee . | . . . Uniques/NPCs Destroyed . | . . . Combat | -11 -10 -9 -------- Run | Yrd Mat Mat Hostile Shots Fired 187 | . 60 127 Missed 40 | . 15 25 Damage Taken 1880 | . 579 1301 Core 535 | . 128 407 Absorbed by Shields . | . . . Core Remaining (%) 74 | 100 48 . Volleys Fired 101 | . 48 53 Largest 2 | . 2 2 Hottest 65 | . 40 65 Shots Fired 145 | . 84 61 Gun 145 | . 84 61 Cannon . | . . . Launcher . | . . . Special . | . . . Kinetic 120 | . 84 36 Thermal 25 | . . 25 Explosive . | . . . Electromagnetic . | . . . Robot Hit Streak 21 | . 8 21 Robot Miss Streak 4 | . 4 2 Penetration Max . | . . . Secondary Targets 2 | . 1 1 Max Gunslinging Chain 1 | . 1 1 Shots Hit Robots 103 | . 55 48 Core Hits 43 | . 22 21 Critical Kills . | . . . Critical Parts Destroyed 1 | . 1 . Critical Strikes 3 | . 1 2 Burn 2 | . . 2 Destroy 1 | . 1 . Melee Attacks . | . . . Impact . | . . . Slashing . | . . . Piercing . | . . . Sneak Attacks . | . . . Combat Hostiles . | . . . Follow-up Attacks . | . . . Damage Inflicted 1052 | . 424 628 Guns 1036 | . 418 618 Cannons . | . . . Explosions . | . . . Melee . | . . . Ramming 16 | . 6 10 Kinetic 771 | . 418 353 Thermal 265 | . . 265 Explosive . | . . . Electromagnetic . | . . . Impact . | . . . Slashing . | . . . Piercing . | . . . Highest Corruption . | . . . Average Corruption . | . . . Corruption Purged . | . . . Corruption Blocked . | . . . Overload Shots . | . . . Overflow Damage . | . . . Projectiles . | . . . Explosions . | . . . Melee . | . . . Knockbacks . | . . . Impact . | . . . Kinetic . | . . . Secondary . | . . . Self-Inflicted Damage . | . . . Shots . | . . . Rammed . | . . . Targets Rammed 7 | . 2 5 Kicked 7 | . 2 5 Crushed . | . . . Highest Temperature 347 | . 27 347 Average Temperature 112 | . 10 170 Received Heat Transfer 924 | . 345 579 Siege Activations . | . . . Robots Corrupted . | . . . Combat Hostiles . | . . . Parts Fried . | . . . Impact Corruptions . | . . . Robots Melted . | . . . Combat Hostiles . | . . . Parts Melted 1 | . . 1 Heat Transferred 777 | . . 777 Parts Sabotaged . | . . . Parts Stolen . | . . . Parts Stripped . | . . . Power Chain Reactions . | . . . Alert | -11 -10 -9 ------- Run | Yrd Mat Mat Peak Influence 165 | . 105 165 Initial 5 | . . 5 Average 42 | . 28 62 Maximum Alert Level . | . . . Low Security (%) 100 | 100 100 100 Level 1 . | . . . Level 2 . | . . . Level 3 . | . . . Level 4 . | . . . Level 5 . | . . . High Security . | . . . Max Security . | . . . Squads Dispatched 2 | . 1 1 Investigation 2 | . 1 1 Extermination . | . . . Reinforcement . | . . . Assault . | . . . Garrison . | . . . Intercept . | . . . Searches Triggered . | . . . Construction Impeded . | . . . Haulers Reinforced . | . . . Active Scanning Responses . | . . . Cargo Convoy Interrupts . | . . . Stealth | -11 -10 -9 --------- Run | Yrd Mat Mat Distress Signals 3 | . 1 2 Communications Jammed . | . . . Distress Signals . | . . . Times Spotted 26 | . 9 17 Peak Tracking Total 5 | . 5 5 Tactical Retreats 1 | . . 1 Traps | -11 -10 -9 ------- Run | Yrd Mat Mat Traps Triggered 1 | . . 1 Indirectly . | . . . Trap Hack Attempts . | . . . Triggered . | . . . Disarmed . | . . . Reprogrammed . | . . . Reused . | . . . Traps Extracted . | . . . Installed . | . . . Triggered . | . . . Machines | -11 -10 -9 ---------- Run | Yrd Mat Mat Machines Disabled 1 | . . 1 Max in Single Turn 1 | . . 1 Machines Repaired . | . . . Machines Dismantled . | . . . Machines Sabotaged . | . . . Overloaded Fab Kills . | . . . Hacking | -11 -10 -9 --------- Run | Yrd Mat Mat Machines Accessed 2 | . 2 . Terminals 2 | . 2 . Fabricators . | . . . Repair Stations . | . . . Recycling Units . | . . . Scanalyzers . | . . . Garrison Access . | . . . Total Hacks 4 | . 4 . Successful . | . . . Failed 4 | . 4 . Catastrophic 1 | . 1 . Database Lockouts . | . . . Manual . | . . . Terminals 4 | . 4 . Fabricators . | . . . Repair Stations . | . . . Recycling Units . | . . . Scanalyzers . | . . . Garrison Access . | . . . Terminal Hacks . | . . . Fabricator Hacks . | . . . Repair Station Hacks . | . . . Recycling Unit Hacks . | . . . Scanalyzer . | . . . Garrison Access Hacks . | . . . Unauthorized Hacks . | . . . Terminals . | . . . Fabricators . | . . . Repair Stations . | . . . Recycling Units . | . . . Scanalyzers . | . . . Garrison Access . | . . . Data Cores Recovered . | . . . Used . | . . . Hacking Detections 2 | . 2 . Full Trace Events 1 | . 1 . Feedback Events . | . . . Feedback Blocked . | . . . Robot Schematics Acquired . | . . . Robots Built . | . . . Authchips . | . . . Time . | . . . Total Robot Build Rating . | . . . Part Schematics Acquired . | . . . Parts Built . | . . . Authchips . | . . . Time . | . . . Total Part Build Rating . | . . . Parts Repaired . | . . . Time . | . . . Parts Recycled . | . . . Recycled Matter . | . . . Retrieved Matter . | . . . Retrieved Components . | . . . Parts Scanalyzed . | . . . Part Schematics Acquired . | . . . Parts Damaged . | . . . Bothacking | -11 -10 -9 ------------ Run | Yrd Mat Mat Used RIF Installer . | . . . Robots Hacked . | . . . Non-combat . | . . . Combat . | . . . Robot Hacks Applied . | . . . Relay Couplers Released . | . . . Fabnet Peak Effective % . | . . . Robots Rewired . | . . . Allies Hacked . | . . . Hacks Repelled . | . . . Allies | -11 -10 -9 -------- Run | Yrd Mat Mat Total Allies . | . . . Largest Group . | . . . Highest-Rated Group . | . . . Highest-Rated Ally . | . . . Total Orders . | . . . Ally Attacks . | . . . Total Damage . | . . . Kills . | . . . Allies Corrupted . | . . . Allies Melted . | . . . Intel | -11 -10 -9 ------- Run | Yrd Mat Mat Robot Analysis Total . | . . . Derelict Logs Recovered . | . . . Drone Launches . | . . . Drone Recoveries . | . . . Exploration | -11 -10 -9 ------------- Run | Yrd Mat Mat Turns Passed 1172 | 46 598 528 Spaces Moved 698 | 37 379 282 Core 17 | 17 . . Treads . | . . . Legs 681 | 20 379 282 Wheels . | . . . Hover . | . . . Flight . | . . . Fastest Speed 50 | 50 120 120 Average Speed 125 | 87 120 136 Slowest Speed 260 | 120 120 260 Overloaded Moves . | . . . Propulsion Burnouts . | . . . Robots Hopped . | . . . Cave-ins Triggered . | . . . Exploration Rate (%) 26 | 3 56 21 Regions Visited 2 Branch Regions . Pre-discovered Areas . | . . . Known Exits Taken . | . . . Unknown Exits Taken 2 | 1 1 . Scrap Searched . | . . . Spaces Dug . | . . . Terrain Destroyed . | . . . Melee . | . . . Projectile . | . . . AOE . | . . . Terrain Rammed . | . . . Walls Destroyed . | . . . Machines Disabled . | . . . Actions | -11 -10 -9 --------- Run | Yrd Mat Mat Total 870 | 51 455 364 Wait 10 | . . 10 Move 696 | 36 378 282 Hop . | . . . Pick Up 26 | 7 13 6 Fast Attach 1 | 1 . . Attach 15 | 5 4 6 Detach . | . . . Swap 5 | . 4 1 Drop 9 | 2 6 1 Fire 101 | . 48 53 Melee . | . . . Ram . | . . . Kick 7 | . 2 5 Crush . | . . . Escape Stasis . | . . . Rewire . | . . . Trap . | . . . Miscellaneous . | . . . Route ------- -11/Scrapyard -10/Materials (discovered 3 exits: [*Mat x2] / [*Min]) -9/Materials History --------- Turn | Location | Event 7 | -11/Scrapyard | Discovered new exit (range 16) 47 | -11/Scrapyard | Entered Materials 153 | -10/Materials | Discovered new exit (range 16) 300 | -10/Materials | Build established: Mutant 334 | -10/Materials | Discovered new exit (range 11) 388 | -10/Materials | Core integrity fell below 50% 420 | -10/Materials | Lost 3 parts (1p1n1w) 547 | -10/Materials | Derelicts attacked the area 567 | -10/Materials | Discovered new exit (range 14) 645 | -10/Materials | Entered another Materials area 645 | -9/Materials | Evolved 2 slots: Propulsion x2 910 | -9/Materials | Core integrity fell below 50% 959 | -9/Materials | Lost 4 parts (1p1n1u1w) 1048 | -9/Materials | Core integrity fell below 20% 1173 | -9/Materials | Destroyed by S-10 Pest with Light Assault Rifle Last Messages --------------- 01068_ Particle Gun melted. 01068_ G-47 Trooper destroyed. 01076_ G-34 Mercenary suffers critical hit (Burn). 01078_ G-34 Mercenary destroyed. 01085_ Acquired Aluminum Leg. 01087_ G-34 Mercenary destroyed. 01090_ R-06 Scavenger collects Aluminum Leg. 01091_ R-06 Scavenger suffers critical hit (Burn). 01097_ Acquired 10 matter. 01107_ G-34 Mercenary destroyed. 01113_ Acquired Aluminum Leg. 01115_ Acquired 10 matter. 01122_ Acquired Ion Engine. 01124_ Dropped Ion Engine. 01125_ Acquired 4 matter. 01126_ Acquired 6 matter. 01131_ R-06 Scavenger collects Heat Sink. 01173_ S-10 Pest destroyed. Map ----- +----------------------------------------------------+ | ?????????????????????????????????????????????????? | | ?????????????????????????????????????????????????? | | ?????????????????????????????????????????????????? | | ?????????????????????????????????????????????????? | | ?????????????????????????????????????????????????? | | ?????????????????????????????????????????????????? | | ?????????????????????????????????????????????????? | | ?????????????????????????????????????????????????? | | ?????????????????????????????????????????????????? | | ?????????????????????????????????????????????????? | | ?????????????????????????????????????????????????? | | ???????????????????? ??????????????????????????? | | ???????????????? ? ??????????????????????????? | | ?????????????? == ??????????????????????????? | | ????????????# =! ??????????????????????????? | | ???????????# #?????????????????????????? | | ???????????# #?????????????????????????? | | ???????????# #?????????????????????????? | | ???????????# #?????????????????????????? | | ???????????# ########??????????????????? | | ???????????# # "T" #??????????????????? | | ???????????#=[ # #??????????????????? | | ???????????#=! # #??????????????????? | | ???????##### # ** ##?????????????????? | | ??????? u #s[ **Y #?????????????????? | | #????######## u s%@ * #??????????????????? | | #????# # """" ########??????????????????? | | #????# + """" +???????????? | | #????# """ # """" ########??????????????????? | | ###### """ # #?????????????????????????? | | + """ # #?????????????????????????? | | # # "" #?????????????????????????? | | ####+### "T #?????????????????????????? | | "" #?????????????????????????? | | #?????????????????????????? | | #?????????????????????????? | | # ####+##### #####?????????????????????????? | | # #% * # #?????????????????????????????? | | # %/%!"" #! !#?????????????????????????????? | | #%##!""" ##!!!!##?????????????????????????????? | | #[## """ #######??????????????????????????????? | | # ## #????????????????????????????????????? | | # ## """ #????????????????????????????????????? | | # ## """ #????????????????????????????????????? | | # ## """ #????????????????????????????????????? | | # ## #????????????????????????????????????? | | # ###########????????????????????????????????????? | | # #??????????????????????????????????????????????? | | # #??????????????????????????????????????????????? | | # ########???????????????????????????????????????? | +----------------------------------------------------+ Best States ------------- Heat Dissipation 28 Energy Generation 10 Energy Capacity 250 Matter Stores 300 Matter Capacity 300 Sight Range 16 Terrain Scan Density 10 Armor Coverage 150 Evasion (%) 55 Targeting Accuracy 5 Item Schematics ----------------- None Robot Schematics ------------------ None Fabricated ------------ Nothing Alien Tech Used ----------------- None Achievements -------------- None Challenges ------------ None Game ------ Seed DynamicDeepSource Manual? 0 Play Time 00:11:38 Cumulative 48.0 hours Start 2024.07.10 @ 19:48:24 End 2024.07.10 @ 19:59:31 Sessions 1 Manual Loads 0 Difficulty Rogue Special Mode None Game No. 133 Rogue 133 Adventurer 0 Explorer 0 Win Type - Total 0 Types 0/0/0/0/0/0/0/0/0 Lore% 20 Gallery% 37 Achievement% 25 Wizard Run 0 Options --------- Layout 2 ASCII 0 Keyboard 0 Movement Mouse Keybinds 0 Fullscreen 1 Font 48/Smallcaps Map View 25x22 Zoom Use 79% Tactical HUD 1 Map Filters NONE Filters NONE Steam 1 RUN: 5984aaa5-adf7-4a91-b2de-5347aaa52ea9